[Event "56th Rubinstein Memorial A 2020"]
[Site "Polanica Zdroj"]
[Date "2020.08.19"]
[Round "5.8"]
[White "Praczukowski, Stanislaw"]
[Black "Marszalek, Maciej"]
[Result "1/2-1/2"]
[ECO "C89"]
[WhiteElo "2132"]
[BlackElo "2315"]
[Annotator "ChessBase"]
[PlyCount "92"]
[EventDate "2020.08.15"]
[EventType "swiss"]
[EventCountry "POL"]
[SourceTitle "playchess.com"]
[Source "ChessBase"]
[SourceQuality "1"]
[TimeControl "40/5400+30:1800+30"]

1. e4 {[%emt 0:00:00]} e5 {[%emt 0:00:00]} 2. Nf3 {[%emt 0:00:00]} Nc6 {[%emt 0:00:00]} 3. Bb5 {[%emt 0:00:20]} a6 {[%emt 0:00:02]} 4. Ba4 {[%emt 0:00:07]} Nf6 {[%emt 0:00:10]} 5. O-O {[%emt 0:00:34]} Be7 {[%emt 0:00:32]} 6. Re1 {[%emt 0:00:23]} b5 {[%emt 0:00:11]} 7. Bb3 {[%emt 0:00:05]} O-O {[%emt 0:00:09]} 8. c3 {[%emt 0:00:27]} d5 {[%emt 0:05:27]} 9. exd5 {[%emt 0:00:51]} Nxd5 {[%emt 0:02:30]} 10. Nxe5 {[%emt 0:00:34]} Nxe5 {[%emt 0:00:06]} 11. Rxe5 {[%emt 0:00:06]} c6 {[%emt 0:02:05]} 12. d4 {[%emt 0:00:12]} Bd6 {[%emt 0:00:11]} 13. Re1 {[%emt 0:00:09]} Qh4 {[%emt 0:01:23]} 14. g3 {[%emt 0:00:08]} Qh3 {[%emt 0:00:11]} 15. Re4 {[%emt 0:01:39]} g5 {[%emt 0:02:08]} 16. Qf1 {[%emt 0:07:16]} Qxf1+ {[%emt 0:09:03]} 17. Kxf1 {[%emt 0:00:08]} Bh3+ {[%emt 0:00:18]} 18. Kg1 {[%emt 0:08:17]} Rae8 {[%emt 0:23:15]} 19. Rxe8 {[%emt 0:17:30]} Rxe8 {[%emt 0:00:02]} 20. Bd2 {[%emt 0:00:07]} Nb6 {[%emt 0:05:16]} 21. Be3 {[%emt 0:07:30]} Nd5 {[%emt 0:06:28]} 22. Bxd5 {[%emt 0:05:13]} cxd5 {[%emt 0:00:02]} 23. Nd2 {[%emt 0:03:25]} h6 {[%emt 0:00:21]} 24. Re1 {[%emt 0:04:11]} f6 {[%emt 0:02:55]} 25. f3 {[%emt 0:03:22]} Bf5 {[%emt 0:02:12]} 26. Bf2 {[%emt 0:00:25]} Rc8 {[%emt 0:00:30]} 27. g4 {[%emt 0:01:37]} Bd7 {[%emt 0:00:03]} 28. Bg3 {[%emt 0:01:19]} Bf8 {[%emt 0:00:02]} 29. Nb3 {[%emt 0:06:00]} Kf7 {[%emt 0:00:52]} 30. a3 {[%emt 0:00:52]} Be6 {[%emt 0:03:53]} 31. Kg2 {[%emt 0:02:31]} Be7 {[%emt 0:00:29]} 32. h3 {[%emt 0:00:50]} h5 {[%emt 0:00:16]} 33. Bf2 {[%emt 0:02:44]} hxg4 {[%emt 0:04:01]} 34. hxg4 {[%emt 0:00:24]} Rh8 {[%emt 0:00:11]} 35. Bg3 {[%emt 0:02:14]} Rc8 {[%emt 0:00:35]} 36. Na5 {[%emt 0:01:24]} f5 {[%emt 0:04:17]} 37. gxf5 {[%emt 0:01:12]} Bxf5 {[%emt 0:00:01]} 38. Nb7 {[%emt 0:02:52]} g4 {[%emt 0:01:11]} 39. fxg4 {[%emt 0:00:55]} Be4+ {[%emt 0:00:14]} 40. Kf2 {[%emt 0:00:00]} Ke6 {[%emt 0:00:00]} 41. Nc5+ {[%emt 0:05:16]} Bxc5 {[%emt 0:00:54]} 42. dxc5 {[%emt 0:00:02]} Rxc5 {[%emt 0:00:10]} 43. Ke3 {[%emt 0:01:41]} a5 {[%emt 0:00:32]} 44. Rf1 {[%emt 0:02:06]} b4 {[%emt 0:02:04]} 45. axb4 {[%emt 0:00:12]} axb4 {[%emt 0:00:01]} 46. Be1 {[%emt 0:05:59]} b3 {[%emt 0:01:23]} 1/2-1/2

[Event "56th Rubinstein Memorial A 2020"]
[Site "Polanica Zdroj"]
[Date "2020.08.19"]
[Round "5.9"]
[White "Kowalczyk, Rafal"]
[Black "Polak, Michal"]
[Result "1-0"]
[ECO "B35"]
[WhiteElo "2268"]
[BlackElo "1878"]
[Annotator "ChessBase"]
[PlyCount "67"]
[EventDate "2020.08.15"]
[EventType "swiss"]
[EventCountry "POL"]
[SourceTitle "playchess.com"]
[Source "ChessBase"]
[SourceQuality "1"]
[TimeControl "40/5400+30:1800+30"]

1. e4 {[%emt 0:00:00]} c5 {[%emt 0:00:35]} 2. Nf3 {[%emt 0:00:42]} g6 {[%emt 0:00:25]} 3. d4 {[%emt 0:00:11]} cxd4 {[%emt 0:00:07]} 4. Nxd4 {[%emt 0:00:07]} Bg7 {[%emt 0:00:06]} 5. Nc3 {[%emt 0:00:43]} Nc6 {[%emt 0:00:10]} 6. Be3 {[%emt 0:00:08]} Nf6 {[%emt 0:00:06]} 7. Bc4 {[%emt 0:00:13]} O-O {[%emt 0:00:05]} 8. Bb3 {[%emt 0:00:09]} a5 {[%emt 0:00:41]} 9. O-O {[%emt 0:05:14]} a4 {[%emt 0:00:17]} 10. Nxa4 {[%emt 0:00:28]} Nxe4 {[%emt 0:00:13]} 11. Nb5 {[%emt 0:00:28]} d5 {[%emt 0:00:17]} 12. Bb6 {[%emt 0:00:33]} Qd7 {[%emt 0:00:28]} 13. Qe2 {[%emt 0:00:10]} e6 {[%emt 0:22:49]} 14. Rad1 {[%emt 0:05:49]} Na5 {[%emt 0:14:57]} 15. f3 {[%emt 0:06:43]} Nf6 {[%emt 0:06:52]} 16. Nc7 {[%emt 0:25:37]} Nxb3 {[%emt 0:01:39]} 17. cxb3 {[%emt 0:05:02]} Rxa4 {[%emt 0:07:02]} 18. bxa4 {[%emt 0:00:20]} Qxa4 {[%emt 0:00:41]} 19. b3 {[%emt 0:02:00]} Qc6 {[%emt 0:03:24]} 20. Qb5 {[%emt 0:07:02]} Bd7 {[%emt 0:03:27]} 21. a4 {[%emt 0:05:18]} Bh6 {[%emt 0:05:59]} 22. Qxc6 {[%emt 0:09:07]} Bxc6 {[%emt 0:00:15]} 23. Bd4 {[%emt 0:00:22]} Nd7 {[%emt 0:01:58]} 24. f4 {[%emt 0:00:39]} Rc8 {[%emt 0:09:09]} 25. Nb5 {[%emt 0:00:12]} g5 {[%emt 0:02:49]} 26. g3 {[%emt 0:06:14]} gxf4 {[%emt 0:02:06]} 27. gxf4 {[%emt 0:00:08]} f6 {[%emt 0:02:13]} 28. Nd6 {[%emt 0:06:26]} Ra8 {[%emt 0:01:02]} 29. Rd3 {[%emt 0:00:33]} Rf8 {[%emt 0:09:28]} 30. Re3 {[%emt 0:05:43]} e5 {[%emt 0:01:11]} 31. Rg3+ {[%emt 0:00:48]} Kh8 {[%emt 0:02:06]} 32. fxe5 {[%emt 0:00:11]} fxe5 {[%emt 0:02:03]} 33. Rxf8+ {[%emt 0:00:14]} Bxf8 {[%emt 0:00:23]} 34. Nf7# {[%emt 0:00:07]} 1-0

[Event "56th Rubinstein Memorial A 2020"]
[Site "Polanica Zdroj"]
[Date "2020.08.19"]
[Round "5.11"]
[White "Fiedorek, Michal"]
[Black "Hasterok, Mateusz"]
[Result "1/2-1/2"]
[ECO "B46"]
[WhiteElo "2212"]
[BlackElo "2056"]
[Annotator "ChessBase"]
[PlyCount "83"]
[EventDate "2020.08.15"]
[EventType "swiss"]
[EventCountry "POL"]
[SourceTitle "playchess.com"]
[Source "ChessBase"]
[SourceQuality "1"]
[TimeControl "40/5400+30:1800+30"]

1. e4 {[%emt 0:00:00]} c5 {[%emt 0:00:00]} 2. Nf3 {[%emt 0:00:00]} Nc6 {[%emt 0:00:00]} 3. d4 {[%emt 0:00:00]} cxd4 {[%emt 0:00:00]} 4. Nxd4 {[%emt 0:00:00]} e6 {[%emt 0:00:00]} 5. Nc3 {[%emt 0:00:12]} a6 {[%emt 0:00:00]} 6. Nxc6 {[%emt 0:00:18]} bxc6 {[%emt 0:00:00]} 7. Bd3 {[%emt 0:00:28]} d5 {[%emt 0:00:00]} 8. O-O {[%emt 0:00:31]} Nf6 {[%emt 0:00:00]} 9. Qf3 {[%emt 0:00:19]} Be7 {[%emt 0:03:03]} 10. Qg3 {[%emt 0:00:37]} Nh5 {[%emt 0:02:27]} 11. Qf3 {[%emt 0:00:52]} Nf6 {[%emt 0:00:39]} 12. e5 {[%emt 0:00:18]} Nd7 {[%emt 0:00:19]} 13. Qg3 {[%emt 0:00:44]} Kf8 {[%emt 0:00:35]} 14. Bf4 {[%emt 0:06:59]} Bb7 {[%emt 0:06:45]} 15. Na4 {[%emt 0:04:21]} c5 {[%emt 0:04:28]} 16. c4 {[%emt 0:10:50]} d4 {[%emt 0:01:44]} 17. b3 {[%emt 0:03:51]} h5 {[%emt 0:12:00]} 18. h3 {[%emt 0:05:54]} Bh4 {[%emt 0:04:04]} 19. Qh2 {[%emt 0:00:19]} g5 {[%emt 0:00:15]} 20. Bd2 {[%emt 0:03:55]} g4 {[%emt 0:13:30]} 21. Rae1 {[%emt 0:19:24]} Rg8 {[%emt 0:10:57]} 22. hxg4 {[%emt 0:11:04]} Rxg4 {[%emt 0:12:55]} 23. f3 {[%emt 0:01:51]} Bxe1 {[%emt 0:06:12]} 24. Bh6+ {[%emt 0:00:34]} Ke8 {[%emt 0:00:53]} 25. fxg4 {[%emt 0:03:07]} Qh4 {[%emt 0:02:18]} 26. gxh5 {[%emt 0:13:51]} Qxh2+ {[%emt 0:02:21]} 27. Kxh2 {[%emt 0:00:04]} Nxe5 {[%emt 0:00:44]} 28. Nxc5 {[%emt 0:05:48]} Bb4 {[%emt 0:05:32]} 29. Bg7 {[%emt 0:04:07]} Ng4+ {[%emt 0:03:36]} 30. Kg3 {[%emt 0:00:45]} Bxc5 {[%emt 0:00:04]} 31. Kxg4 {[%emt 0:01:11]} Bxg2 {[%emt 0:00:06]} 32. Rg1 {[%emt 0:02:16]} f5+ {[%emt 0:01:17]} 33. Kf4 {[%emt 0:00:39]} Bc6 {[%emt 0:01:27]} 34. h6 {[%emt 0:00:20]} Kf7 {[%emt 0:01:11]} 35. Be5 {[%emt 0:01:10]} Rg8 {[%emt 0:01:01]} 36. Bxf5 {[%emt 0:00:39]} Rxg1 {[%emt 0:00:44]} 37. h7 {[%emt 0:00:27]} Rh1 {[%emt 0:01:30]} 38. Bd3 {[%emt 0:00:35]} Be7 {[%emt 0:01:43]} 39. h8=Q {[%emt 0:00:19]} Rxh8 {[%emt 0:00:05]} 40. Bxh8 {[%emt 0:00:00]} Bf6 {[%emt 0:00:00]} 41. Bxf6 {[%emt 0:00:14]} Kxf6 {[%emt 0:00:32]} 42. Be4 1/2-1/2

[Event "56th Rubinstein Memorial A 2020"]
[Site "Polanica Zdroj"]
[Date "2020.08.19"]
[Round "5.16"]
[White "Jachym, Adam"]
[Black "Kasperek, Ryszard"]
[Result "0-1"]
[ECO "B22"]
[WhiteElo "2042"]
[BlackElo "2202"]
[Annotator "ChessBase"]
[PlyCount "78"]
[EventDate "2020.08.15"]
[EventType "swiss"]
[EventCountry "POL"]
[SourceTitle "playchess.com"]
[Source "ChessBase"]
[SourceQuality "1"]
[TimeControl "40/5400+30:1800+30"]

1. e4 {[%emt 0:03:34]} c5 {[%emt 0:00:00]} 2. c3 {[%emt 0:00:07]} Nf6 {[%emt 0:04:23]} 3. e5 {[%emt 0:00:23]} Nd5 {[%emt 0:00:04]} 4. d4 {[%emt 0:00:33]} cxd4 {[%emt 0:00:11]} 5. Nf3 {[%emt 0:00:26]} Nc6 {[%emt 0:00:30]} 6. cxd4 {[%emt 0:00:27]} d6 {[%emt 0:00:56]} 7. Bc4 {[%emt 0:04:10]} Nb6 {[%emt 0:01:04]} 8. Bb5 {[%emt 0:05:12]} dxe5 {[%emt 0:03:42]} 9. Nxe5 {[%emt 0:01:55]} Bd7 {[%emt 0:00:12]} 10. Bxc6 {[%emt 0:00:19]} Bxc6 {[%emt 0:00:47]} 11. Nxc6 {[%emt 0:00:48]} bxc6 {[%emt 0:00:04]} 12. Nc3 {[%emt 0:02:15]} g6 {[%emt 0:15:54]} 13. Qf3 {[%emt 0:02:34]} Rc8 {[%emt 0:02:04]} 14. O-O {[%emt 0:02:57]} Bg7 {[%emt 0:03:17]} 15. Rd1 {[%emt 0:02:48]} O-O {[%emt 0:04:04]} 16. Ne4 {[%emt 0:02:39]} Qd5 {[%emt 0:08:58]} 17. Bg5 {[%emt 0:12:03]} Rfe8 {[%emt 0:10:58]} 18. Bf4 {[%emt 0:06:42]} f5 {[%emt 0:14:16]} 19. Nc3 {[%emt 0:14:03]} Qxf3 {[%emt 0:01:37]} 20. gxf3 {[%emt 0:00:08]} Red8 {[%emt 0:01:34]} 21. Be5 {[%emt 0:12:00]} Bxe5 {[%emt 0:03:30]} 22. dxe5 {[%emt 0:00:07]} Nc4 {[%emt 0:00:03]} 23. e6 {[%emt 0:00:44]} Nxb2 {[%emt 0:12:40]} 24. Rd7 {[%emt 0:01:15]} Rxd7 {[%emt 0:00:45]} 25. exd7 {[%emt 0:00:08]} Rd8 {[%emt 0:00:02]} 26. Rb1 {[%emt 0:00:27]} Nd3 {[%emt 0:00:07]} 27. Rb7 {[%emt 0:00:29]} Nc5 {[%emt 0:06:52]} 28. Rxa7 {[%emt 0:00:20]} Rxd7 {[%emt 0:00:09]} 29. Ra8+ {[%emt 0:00:10]} Kf7 {[%emt 0:00:16]} 30. Rc8 {[%emt 0:01:51]} Rd3 {[%emt 0:01:36]} 31. Ne2 {[%emt 0:01:10]} Ne6 {[%emt 0:01:31]} 32. Rxc6 {[%emt 0:00:39]} Rd2 {[%emt 0:01:03]} 33. Nc3 {[%emt 0:00:36]} Rc2 {[%emt 0:00:45]} 34. Rc4 {[%emt 0:01:03]} g5 {[%emt 0:00:44]} 35. h4 {[%emt 0:05:34]} Nf4 {[%emt 0:00:39]} 36. hxg5 {[%emt 0:00:08]} Ne2+ {[%emt 0:00:26]} 37. Kf1 {[%emt 0:00:40]} Rxc3 {[%emt 0:00:06]} 38. Rh4 {[%emt 0:00:18]} Rc2 {[%emt 0:00:34]} 39. Rxh7+ {[%emt 0:00:14]} Ke6 {[%emt 0:00:13]} 0-1

[Event "56th Rubinstein Memorial A 2020"]
[Site "Polanica Zdroj"]
[Date "2020.08.19"]
[Round "5.17"]
[White "Grzesik, Norbert"]
[Black "Goraj, Barbara"]
[Result "0-1"]
[ECO "B61"]
[WhiteElo "1980"]
[BlackElo "2099"]
[Annotator "ChessBase"]
[PlyCount "64"]
[EventDate "2020.08.15"]
[EventType "swiss"]
[EventCountry "POL"]
[SourceTitle "playchess.com"]
[Source "ChessBase"]
[SourceQuality "1"]
[TimeControl "40/5400+30:1800+30"]

1. e4 {[%emt 0:00:00]} c5 {[%emt 0:00:00]} 2. Nf3 {[%emt 0:00:00]} d6 {[%emt 0:00:00]} 3. d4 {[%emt 0:00:00]} cxd4 {[%emt 0:00:00]} 4. Nxd4 {[%emt 0:00:00]} Nf6 {[%emt 0:00:02]} 5. Nc3 {[%emt 0:00:00]} Nc6 {[%emt 0:00:12]} 6. Bg5 {[%emt 0:00:03]} Bd7 {[%emt 0:00:27]} 7. Qd2 {[%emt 0:00:24]} Rc8 {[%emt 0:00:29]} 8. O-O-O {[%emt 0:00:44]} Nxd4 {[%emt 0:00:44]} 9. Qxd4 {[%emt 0:00:08]} Qa5 {[%emt 0:00:56]} 10. Bxf6 {[%emt 0:05:26]} gxf6 {[%emt 0:01:04]} 11. Kb1 {[%emt 0:09:11]} Qc5 {[%emt 0:03:16]} 12. Qd2 {[%emt 0:05:20]} Bg7 {[%emt 0:07:10]} 13. f4 {[%emt 0:02:48]} f5 {[%emt 0:17:30]} 14. e5 {[%emt 0:05:48]} O-O {[%emt 0:02:27]} 15. exd6 {[%emt 0:03:54]} e6 {[%emt 0:01:00]} 16. h4 {[%emt 0:25:35]} b5 {[%emt 0:07:55]} 17. Rh3 {[%emt 0:04:54]} Bf6 {[%emt 0:05:08]} 18. Bd3 {[%emt 0:05:35]} b4 {[%emt 0:05:05]} 19. Ne2 {[%emt 0:01:15]} Rfd8 {[%emt 0:04:14]} 20. h5 {[%emt 0:03:54]} Kh8 {[%emt 0:06:50]} 21. Qe3 {[%emt 0:06:05]} Be8 {[%emt 0:11:17]} 22. g4 {[%emt 0:04:28]} Qxd6 {[%emt 0:06:35]} 23. gxf5 {[%emt 0:03:02]} exf5 {[%emt 0:00:42]} 24. Ng3 {[%emt 0:04:07]} Bd7 {[%emt 0:01:19]} 25. Rhh1 {[%emt 0:01:08]} Be6 {[%emt 0:01:22]} 26. h6 {[%emt 0:04:13]} Qd5 {[%emt 0:04:45]} 27. b3 {[%emt 0:02:03]} Qc6 {[%emt 0:01:21]} 28. Ne2 {[%emt 0:02:00]} Bd5 {[%emt 0:02:19]} 29. Rhf1 {[%emt 0:01:47]} Re8 {[%emt 0:01:30]} 30. Qd2 {[%emt 0:00:02]} Bf3 {[%emt 0:01:20]} 31. Rde1 {[%emt 0:00:29]} Red8 {[%emt 0:01:27]} 32. Qe3 {[%emt 0:01:03]} Bxe2 {[%emt 0:01:17]} 0-1

[Event "56th Rubinstein Memorial A 2020"]
[Site "Polanica Zdroj"]
[Date "2020.08.19"]
[Round "5.20"]
[White "Siekanska, Maria"]
[Black "Domanski, Lukasz"]
[Result "1/2-1/2"]
[ECO "A40"]
[WhiteElo "1928"]
[BlackElo "2039"]
[Annotator "NA"]
[PlyCount "61"]
[EventDate "2020.08.15"]
[EventType "swiss"]
[EventCountry "POL"]
[SourceTitle "playchess.com"]
[Source "ChessBase"]
[SourceQuality "1"]
[TimeControl "40/5400+30:1800+30"]

1. d4 {[%emt 0:00:00]} e6 {[%emt 0:00:00]} 2. c4 {[%emt 0:00:00]} b6 {[%emt 0:00:00]} 3. Nc3 {[%emt 0:00:02]} Bb4 {[%emt 0:00:00]} 4. e3 {[%emt 0:00:17]} Bb7 {[%emt 0:00:14]} 5. Nge2 {[%emt 0:00:21]} f5 {[%emt 0:03:06]} 6. a3 {[%emt 0:00:47] A40: Unusual replies to 1 d4.} Bxc3+ {[%emt 0:03:31] Recently 6...Be7 got a lot of attention.} 7. Nxc3 {[%emt 0:00:49]} d6 {[%emt 0:03:05] [#]} 8. Bd3 $146 ({Predecessor:} 8. d5 e5 9. Bd3 Bc8 10. O-O Nf6 11. f4 e4 12. Be2 a6 13. b4 Nbd7 14. Bb2 {1-0 (42) Yrjola,J (2430)-Pyhala,A (2385) Joensuu 1989}) 8... Nf6 {[%emt 0:07:20]} 9. d5 {[%emt 0:03:55]} O-O {[%emt 0:04:37]} 10. Qc2 {[%emt 0:02:15]} g6 {[%emt 0:04:57]} 11. h4 {[%emt 0:02:59]} ({White should play} 11. O-O $14) 11... Nbd7 {[%emt 0:05:15]} 12. b3 {[%emt 0:09:12]} Ne5 {[%emt 0:02:20]} 13. Bb2 {[%emt 0:03:23]} Nxd3+ {[%emt 0:03:00]} 14. Qxd3 {[%emt 0:00:04]} e5 {[%emt 0:00:14]} 15. O-O-O {[%emt 0:00:57]} Ne4 {[%emt 0:07:53]} 16. Qc2 {[%emt 0:05:44]} Nxc3 {[%emt 0:01:49]} 17. Qxc3 {[%emt 0:00:21]} f4 {[%emt 0:02:22]} 18. exf4 {[%emt 0:01:48]} Rxf4 {[%emt 0:00:50] Double Attack} 19. f3 {[%emt 0:00:29]} Qf6 $11 {[%emt 0:03:41]} 20. h5 {[%emt 0:05:36]} g5 {[%emt 0:03:26]} 21. h6 {[%emt 0:06:37]} Qf5 {[%emt 0:05:47]} 22. Rd3 {[%emt 0:11:43]} Rf8 {[%emt 0:01:54]} 23. Kb1 {[%emt 0:04:34]} Rd4 {[%emt 0:03:42]} 24. Rhd1 {[%emt 0:00:12]} Rh4 {[%emt 0:00:56]} 25. g3 {[%emt 0:02:11]} Rxh6 {[%emt 0:02:47]} 26. f4 {[%emt 0:00:37]} Rh2 {[%emt 0:06:30]} 27. fxe5 {[%emt 0:01:20]} Qxe5 {[%emt 0:00:54]} 28. Qc1 {[%emt 0:01:15]} Qf5 {[%emt 0:01:35]} 29. Qc3 {[%emt 0:00:12]} Qe5 {[%emt 0:00:52]} 30. Qc1 {[%emt 0:00:23]} Qf5 {[%emt 0:00:07]} 31. Qc3 {[%emt 0:00:07]} 1/2-1/2

[Event "56th Rubinstein Memorial A 2020"]
[Site "Polanica Zdroj"]
[Date "2020.08.19"]
[Round "5.21"]
[White "Rogacewicz, Mikolaj"]
[Black "Jedynak, January"]
[Result "1-0"]
[ECO "D30"]
[WhiteElo "1970"]
[BlackElo "1887"]
[Annotator "ChessBase"]
[PlyCount "39"]
[EventDate "2020.08.15"]
[EventType "swiss"]
[EventCountry "POL"]
[SourceTitle "playchess.com"]
[Source "ChessBase"]
[SourceQuality "1"]
[TimeControl "40/5400+30:1800+30"]

1. d4 {[%emt 0:00:00]} d5 {[%emt 0:06:10]} 2. c4 {[%emt 0:00:00]} e6 {[%emt 0:00:10]} 3. Nf3 {[%emt 0:00:00]} c6 {[%emt 0:00:10]} 4. e3 {[%emt 0:00:21]} f5 {[%emt 0:00:06]} 5. Bd3 {[%emt 0:00:53]} Nf6 {[%emt 0:00:17]} 6. O-O {[%emt 0:02:33]} Bd6 {[%emt 0:01:12]} 7. b3 {[%emt 0:02:02]} Qe7 {[%emt 0:00:07]} 8. a4 {[%emt 0:01:01]} Nbd7 {[%emt 0:01:31]} 9. Ba3 {[%emt 0:01:28]} c5 {[%emt 0:00:55]} 10. cxd5 {[%emt 0:20:43]} Nxd5 {[%emt 0:05:48]} 11. Nbd2 {[%emt 0:02:21]} O-O {[%emt 0:38:51]} 12. Nc4 {[%emt 0:02:45]} Bc7 {[%emt 0:01:42]} 13. Nfe5 {[%emt 0:08:46]} Nxe5 {[%emt 0:01:07]} 14. Bxc5 {[%emt 0:02:00]} Qh4 {[%emt 0:01:23]} 15. dxe5 {[%emt 0:01:59]} Rf6 {[%emt 0:02:12]} 16. g3 {[%emt 0:05:12]} Rg6 {[%emt 0:01:22]} 17. Bxf5 {[%emt 0:00:56]} exf5 {[%emt 0:06:06]} 18. Qxd5+ {[%emt 0:00:39]} Kh8 {[%emt 0:00:36]} 19. Qf7 {[%emt 0:02:34]} Qd8 {[%emt 0:03:22]} 20. Rad1 {[%emt 0:00:30]} 1-0

[Event "56th Rubinstein Memorial A 2020"]
[Site "Polanica Zdroj"]
[Date "2020.08.19"]
[Round "5.23"]
[White "Mirowska, Oliwia"]
[Black "Starosciak, Szymon"]
[Result "0-1"]
[ECO "B21"]
[WhiteElo "1898"]
[BlackElo "1850"]
[Annotator "NA"]
[PlyCount "48"]
[EventDate "2020.08.15"]
[EventType "swiss"]
[EventCountry "POL"]
[SourceTitle "playchess.com"]
[Source "ChessBase"]
[SourceQuality "1"]
[TimeControl "40/5400+30:1800+30"]

1. e4 {[%emt 0:29:41]} c5 {[%emt 0:29:39]} 2. f4 {[%emt 0:00:13]} Nc6 {[%emt 0:01:32]} 3. Bc4 {[%emt 0:00:26]} e6 {[%emt 0:00:00]} 4. Nc3 {[%emt 0:00:00]} g6 {[%emt 0:00:00]} 5. Nf3 {[%emt 0:00:00]} Bg7 {[%emt 0:00:00]} 6. O-O {[%emt 0:00:00]} Nge7 {[%emt 0:00:00]} 7. e5 {[%emt 0:00:00]} d6 {[%emt 0:00:00]} 8. exd6 {[%emt 0:00:00]} Qxd6 {[%emt 0:00:00]} 9. Ne4 {[%emt 0:00:00]} Qc7 {[%emt 0:00:00]} 10. c3 {[%emt 0:00:00]} b6 {[%emt 0:00:00]} 11. Qe2 {[%emt 0:00:00]} O-O {[%emt 0:00:00]} 12. Bb3 {[%emt 0:00:00]} Bb7 {[%emt 0:00:00]} 13. Neg5 {[%emt 0:06:06]} Bc8 {[%emt 0:07:24]} 14. Qf2 {[%emt 0:22:20]} h6 {[%emt 0:06:03]} 15. Ne4 {[%emt 0:04:11]} Ba6 {[%emt 0:06:21]} 16. Re1 {[%emt 0:00:44]} Nd5 {[%emt 0:01:17]} 17. Bxd5 {[%emt 0:10:54]} exd5 {[%emt 0:00:08]} 18. Ng3 {[%emt 0:00:02]} Qxf4 {[%emt 0:04:06]} 19. d4 {[%emt 0:00:37]} Qd6 {[%emt 0:00:32]} 20. dxc5 {[%emt 0:00:33]} bxc5 {[%emt 0:02:15]} 21. Nh4 {[%emt 0:01:17]} Qf6 {[%emt 0:07:18]} 22. Qxc5 {[%emt 0:03:15]} Ne5 {[%emt 0:01:03]} 23. Qd4 {[%emt 0:00:57]} Nd3 {[%emt 0:00:39]} 24. Rd1 {[%emt 0:07:14]} Qxd4+ {[%emt 0:01:37]} 0-1

[Event "56th Rubinstein Memorial A 2020"]
[Site "Polanica Zdroj"]
[Date "2020.08.19"]
[Round "5.24"]
[White "Topola, Rafal"]
[Black "Dytman, Radoslaw"]
[Result "*"]
[ECO "B01"]
[WhiteElo "1808"]
[BlackElo "1867"]
[Annotator "NA"]
[PlyCount "35"]
[EventDate "2020.08.15"]
[EventType "swiss"]
[EventCountry "POL"]
[SourceTitle "playchess.com"]
[Source "ChessBase"]
[SourceQuality "1"]
[TimeControl "40/5400+30:1800+30"]

1. e4 {[%emt 0:00:00]} d5 {[%emt 0:00:00]} 2. exd5 {[%emt 0:00:00]} Nf6 {[%emt 0:00:00]} 3. Bb5+ {[%emt 0:02:37]} Bd7 {[%emt 0:00:33]} 4. Bxd7+ {[%emt 0:00:26]} Qxd7 {[%emt 0:00:55]} 5. Nc3 {[%emt 0:00:39]} Nxd5 {[%emt 0:01:19]} 6. Nxd5 {[%emt 0:04:33]} Qxd5 {[%emt 0:00:06]} 7. Qf3 {[%emt 0:00:11]} Qxf3 {[%emt 0:03:42]} 8. Nxf3 {[%emt 0:00:02]} Nc6 {[%emt 0:00:36]} 9. a3 {[%emt 0:00:55]} g6 {[%emt 0:09:32]} 10. d4 {[%emt 0:02:20]} Bg7 {[%emt 0:05:14]} 11. Be3 {[%emt 0:00:12]} O-O-O {[%emt 0:01:22]} 12. O-O-O {[%emt 0:00:10]} e6 {[%emt 0:06:30]} 13. Rhe1 {[%emt 0:08:23]} Rd5 {[%emt 0:05:11]} 14. c3 $11 {[%emt 0:04:13]} h6 {[%emt 0:10:05]} 15. h4 {[%emt 0:08:23]} a5 {[%emt 0:04:59]} 16. a4 {[%emt 0:02:04]} b6 {[%emt 0:02:54]} 17. Bf4 {[%emt 0:01:10]} Kb7 {[%emt 0:04:43]} 18. Be5 {[%emt 0:08:05]} *

[Event "56th Rubinstein Memorial A 2020"]
[Site "Polanica Zdroj"]
[Date "2020.08.19"]
[Round "5.25"]
[White "Hetzer, Volkhard"]
[Black "Stachecki, Mikolaj"]
[Result "1/2-1/2"]
[ECO "A05"]
[WhiteElo "1911"]
[BlackElo "1806"]
[Annotator "ChessBase"]
[PlyCount "68"]
[EventDate "2020.08.15"]
[EventType "swiss"]
[EventCountry "POL"]
[SourceTitle "playchess.com"]
[Source "ChessBase"]
[SourceQuality "1"]
[TimeControl "40/5400+30:1800+30"]

1. Nf3 {[%emt 0:00:00]} Nf6 {[%emt 0:00:00]} 2. c4 {[%emt 0:00:00]} g6 {[%emt 0:00:08]} 3. Nc3 {[%emt 0:00:02]} Bg7 {[%emt 0:00:15]} 4. g3 {[%emt 0:00:20]} O-O {[%emt 0:00:09]} 5. Bg2 {[%emt 0:00:03]} d6 {[%emt 0:00:10]} 6. O-O {[%emt 0:00:08]} Nc6 {[%emt 0:00:12]} 7. Rb1 {[%emt 0:00:07]} a5 {[%emt 0:00:22]} 8. a3 {[%emt 0:00:03]} e5 {[%emt 0:01:04]} 9. d3 {[%emt 0:00:22]} Re8 {[%emt 0:01:12]} 10. Nd2 {[%emt 0:15:43]} Nd4 {[%emt 0:02:55]} 11. e3 {[%emt 0:01:34]} Ne6 {[%emt 0:00:20]} 12. b4 {[%emt 0:02:58]} axb4 {[%emt 0:00:05]} 13. axb4 {[%emt 0:00:04]} c6 {[%emt 0:01:49]} 14. Bb2 {[%emt 0:14:26]} d5 {[%emt 0:08:30]} 15. cxd5 {[%emt 0:02:44]} cxd5 {[%emt 0:17:36]} 16. Nf3 {[%emt 0:08:13]} d4 {[%emt 0:11:52]} 17. exd4 {[%emt 0:01:56]} Nxd4 {[%emt 0:01:10]} 18. Nxd4 {[%emt 0:01:00]} exd4 {[%emt 0:01:50]} 19. Nb5 {[%emt 0:09:41]} Qb6 {[%emt 0:15:08]} 20. Nxd4 {[%emt 0:00:33]} Bg4 {[%emt 0:08:15]} 21. Bf3 {[%emt 0:06:31]} Nd5 {[%emt 0:02:34]} 22. Qb3 {[%emt 0:06:04]} Bxd4 {[%emt 0:08:55]} 23. Bxd4 {[%emt 0:05:42]} Qxd4 {[%emt 0:00:08]} 24. Bxd5 {[%emt 0:02:05]} Be6 {[%emt 0:01:09]} 25. Bxe6 {[%emt 0:00:19]} Rxe6 {[%emt 0:00:04]} 26. Rfe1 {[%emt 0:01:48]} Rea6 {[%emt 0:02:58]} 27. Re4 {[%emt 0:07:52]} Qd7 {[%emt 0:01:43]} 28. Rbe1 {[%emt 0:04:18]} Ra3 {[%emt 0:03:08]} 29. Qc4 {[%emt 0:04:20]} Qxd3 {[%emt 0:06:21]} 30. Re8+ {[%emt 0:03:30]} Rxe8 {[%emt 0:01:09]} 31. Rxe8+ {[%emt 0:00:01]} Kg7 {[%emt 0:00:05]} 32. Qxd3 {[%emt 0:01:03]} Rxd3 {[%emt 0:00:10]} 33. Re7 {[%emt 0:02:18]} b6 {[%emt 0:00:09]} 34. Rb7 {[%emt 0:00:26]} Rd6 {[%emt 0:02:06]} 1/2-1/2